Workbook

Sheet Help

Sheet Summary
I2: Account 1: | J2: 0
I3: Account 2: | J3: 10
I4: Cash: | J4: 0
I5: Other: | J5: 0
I7: Starting balance: | J7: =SUM(J2:J5) -> 10
I8: Ending Balance: | J8: =J7+J11 -> -354.62
I11: Net Gain/Loss | J11: =G16-B16 -> -364.62
A14: Expenses | F14: Income
A15: Planned | B15: =B20 -> 300 | F15: Planned | G15: =G20 -> 400
A16: Actual | B16: =C20 -> 748.4 | C16: =SUM(B15-B16) -> -448.4 | F16: Actual | G16: =H20 -> 383.78 | H16: =SUM(G15-G16) -> 16.22
A18: Expenses | F18: Income
A19: Categories | B19: Planned | C19: Actual | D19: Difference | F19: Categories | G19: Planned | H19: Actual | I19: Difference
A20: Totals | B20: =SUM(B21:B38) -> 300 | C20: =SUM(C21:C38) -> 748.4 | D20: =SUM(D21:D38) -> -448.4 | F20: Totals | G20: =SUM(G21:G24) -> 400 | H20: =SUM(H21:H24) -> 383.78 | I20: =SUM(I21:I24) -> -16.22
A21: Books | B21: 0 | C21: =IF(ISBLANK($A21), "", SUMIF(Transactions!$E:$E,$A21,Transactions!$C:$C)) -> 26.97 | D21: =IF(ISBLANK($A21), "", B21-C21) -> -26.97 | F21: Interest | G21: 0 | H21: =IF(ISBLANK($F21), "", SUMIF(Transactions!$J:$J,$F21,Transactions!$H:$H)) -> 0 | I21: =IF(ISBLANK($F21), "", H21-G21) -> 0
A22: Credit Card | B22: 100 | C22: =IF(ISBLANK($A22), "", SUMIF(Transactions!$E:$E,$A22,Transactions!$C:$C)) -> 92.64 | D22: 7.36 | F22: Other | G22: 0 | H22: =IF(ISBLANK($F22), "", SUMIF(Transactions!$J:$J,$F22,Transactions!$H:$H)) -> 0 | I22: =IF(ISBLANK($F22), "", H22-G22) -> 0
A23: Dates | B23: 10 | C23: =IF(ISBLANK($A23), "", SUMIF(Transactions!$E:$E,$A23,Transactions!$C:$C)) -> 8.62 | D23: 1.38 | F23: Paycheck | G23: 400 | H23: =IF(ISBLANK($F23), "", SUMIF(Transactions!$J:$J,$F23,Transactions!$H:$H)) -> 383.78 | I23: =IF(ISBLANK($F23), "", H23-G23) -> -16.22
A24: Fast Offerings | B24: 10 | C24: =IF(ISBLANK($A24), "", SUMIF(Transactions!$E:$E,$A24,Transactions!$C:$C)) -> 0 | D24: 10 | F24: Savings | G24: 0 | H24: =IF(ISBLANK($F24), "", SUMIF(Transactions!$J:$J,$F24,Transactions!$H:$H)) -> 0 | I24: =IF(ISBLANK($F24), "", H24-G24) -> 0
A25: Food | B25: 40 | C25: =IF(ISBLANK($A25), "", SUMIF(Transactions!$E:$E,$A25,Transactions!$C:$C)) -> 119.41 | D25: -79.41
A26: Gifts | B26: 0 | C26: =IF(ISBLANK($A26), "", SUMIF(Transactions!$E:$E,$A26,Transactions!$C:$C)) -> 0 | D26: 0
A27: Health/Medical | B27: 5 | C27: =IF(ISBLANK($A27), "", SUMIF(Transactions!$E:$E,$A27,Transactions!$C:$C)) -> 2.54 | D27: 2.46
A28: Laundry | B28: 15 | C28: =IF(ISBLANK($A28), "", SUMIF(Transactions!$E:$E,$A28,Transactions!$C:$C)) -> 16.5 | D28: -1.5
A29: Misc | B29: 50 | C29: =IF(ISBLANK($A29), "", SUMIF(Transactions!$E:$E,$A29,Transactions!$C:$C)) -> 74.15 | D29: -24.15
A30: Pets | B30: 0 | C30: =IF(ISBLANK($A30), "", SUMIF(Transactions!$E:$E,$A30,Transactions!$C:$C)) -> 0 | D30: 0
A31: Phone | B31: 0 | C31: =IF(ISBLANK($A31), "", SUMIF(Transactions!$E:$E,$A31,Transactions!$C:$C)) -> 0 | D31: 0
A32: Rent | B32: 0 | C32: =IF(ISBLANK($A32), "", SUMIF(Transactions!$E:$E,$A32,Transactions!$C:$C)) -> 324.46 | D32: -324.46
A33: Textbooks | B33: 0 | C33: =IF(ISBLANK($A33), "", SUMIF(Transactions!$E:$E,$A33,Transactions!$C:$C)) -> 0 | D33: 0
A34: Tithing | B34: 40 | C34: =IF(ISBLANK($A34), "", SUMIF(Transactions!$E:$E,$A34,Transactions!$C:$C)) -> 73.11 | D34: -33.11
A35: Transportation | B35: 30 | C35: =IF(ISBLANK($A35), "", SUMIF(Transactions!$E:$E,$A35,Transactions!$C:$C)) -> 10 | D35: 20
A36: Travel | B36: 0 | C36: =IF(ISBLANK($A36), "", SUMIF(Transactions!$E:$E,$A36,Transactions!$C:$C)) -> 0 | D36: 0
A37: Tuition | B37: 0 | C37: =IF(ISBLANK($A37), "", SUMIF(Transactions!$E:$E,$A37,Transactions!$C:$C)) -> 0 | D37: 0
A38: Utilities | B38: 0 | C38: =IF(ISBLANK($A38), "", SUMIF(Transactions!$E:$E,$A38,Transactions!$C:$C)) -> 0 | D38: 0

Sheet Transactions
B1: Expenses | G1: Income
B3: Date | C3: Amount | D3: Description | E3: Category | G3: Date | H3: Amount | I3: Description | J3: Category
B4: 2016-11-01 | C4: 24.73 | D4: LDS CHURCH DONATION 13216105 WEB ID: 2870834341 | E4: Tithing | G4: 2016-11-10 | H4: 143.85 | I4: BRIGHAM YOUNG UN DIR DEP PPD ID: 1870217280 | J4: Paycheck
B5: 2016-11-02 | C5: 7.3 | D5: ZURCHERS SITE 117 OREM OREM UT 10/31 | E5: Misc | G5: 2016-11-25 | H5: 239.93 | I5: BRIGHAM YOUNG UN DIR DEP PPD ID: 1870217280 | J5: Paycheck
B6: 2016-11-07 | C6: 92.64 | D6: CAPITAL ONE ONLINE PMT 630939919257000 WEB ID: 9279744991 | E6: Credit Card
B7: 2016-11-07 | C7: 28.73 | D7: SMITHS 350 N. FREED PROVO UT 11/05 | E7: Food
B8: 2016-11-07 | C8: 6.85 | D8: USPS KIOSK 49717 95 W PROVO UT 944508 11/05 | E8: Misc
B9: 2016-11-07 | C9: 5.5 | D9: CHANGE POINT LAUNDRY LITHIA SPRING GA 11/05 | E9: Laundry
B10: 2016-11-07 | C10: 8.99 | D10: Amazon Services-Kindl 866-321-8851 WA 11/05 | E10: Books
B11: 2016-11-14 | C11: 5 | D11: BYU eCheck 348175935 WEB ID: 9870217280 | E11: Food
B12: 2016-11-15 | C12: 8.99 | D12: Amazon Services-Kindl 866-321-8851 WA 11/14 | E12: Books
B13: 2016-11-16 | C13: 60 | D13: BYU eCheck 348175935 WEB ID: 9870217280 | E13: Misc
B14: 2016-11-16 | C14: 5.5 | D14: CHANGE POINT LAUNDRY LITHIA SPRING GA 11/15 | E14: Laundry
B15: 2016-11-21 | C15: 24.39 | D15: LDS CHURCH DONATION 13804165 WEB ID: 2870834341 | E15: Tithing
B16: 2016-11-22 | C16: 2.54 | D16: WM SUPERC Wal-Mart Sup OREM UT 11/22 | E16: Health/Medical
B17: 2016-11-22 | C17: 30.87 | D17: Wal-Mart Super Center OREM UT 11/22 | E17: Food
B18: 2016-11-22 | C18: 8.99 | D18: Amazon Services-Kindl 866-321-8851 WA 11/22 | E18: Books
B19: 2016-11-22 | C19: 8.62 | D19: CAFE RIO PROVO PROVO UT 11/21 | E19: Dates
B20: 2016-11-25 | C20: 5.5 | D20: CHANGE POINT LAUNDRY LITHIA SPRING GA 11/22 | E20: Laundry
B21: 2016-11-28 | C21: 10 | D21: VENMO PAYMENT 346609175 WEB ID: 3264681992 | E21: Transportation
B22: 2016-11-29 | C22: 54.81 | D22: SMITHS 350 N. FREED PROVO UT 11/29 | E22: Food
B23: 2016-11-30 | C23: 23.99 | D23: LDS CHURCH DONATION 14061715 WEB ID: 2870834341 | E23: Tithing
B24: 2016-11-30 | C24: 324.46 | D24: P.A.R. Managemen WEB PMTS V7CJG3 WEB ID: 9000334713 | E24: Rent

Sheet Downloaded info
B3: Path: | C3: J:\groups\ce270project\Chase Data.CSV
B4: Name: | C4: Chase Data
A6: Details | B6: Posting Date | C6: Description | D6: Amount | E6: Balance | F6: Check or Slip #
A7: DEBIT | B7: 2016-11-01 | C7: LDS CHURCH DONATION 13216105 WEB ID: 2870834341 | D7: -24.73 | E7: 1507.39
A8: DEBIT | B8: 2016-11-02 | C8: ZURCHERS SITE 117 OREM OREM UT 10/31 | D8: -7.3 | E8: 1500.09
A9: DEBIT | B9: 2016-11-07 | C9: CAPITAL ONE ONLINE PMT 630939919257000 WEB ID: 9279744991 | D9: -92.64 | E9: 1357.38
A10: DEBIT | B10: 2016-11-07 | C10: SMITHS 350 N. FREED PROVO UT 11/05 | D10: -28.73 | E10: 1450.02
A11: DEBIT | B11: 2016-11-07 | C11: USPS KIOSK 49717 95 W PROVO UT 944508 11/05 | D11: -6.85 | E11: 1478.75
A12: DEBIT | B12: 2016-11-07 | C12: CHANGE POINT LAUNDRY LITHIA SPRING GA 11/05 | D12: -5.5 | E12: 1485.6
A13: DEBIT | B13: 2016-11-07 | C13: Amazon Services-Kindl 866-321-8851 WA 11/05 | D13: -8.99 | E13: 1491.1
A14: CREDIT | B14: 2016-11-10 | C14: BRIGHAM YOUNG UN DIR DEP PPD ID: 1870217280 | D14: 143.85 | E14: 1501.23
A15: DEBIT | B15: 2016-11-14 | C15: BYU eCheck 348175935 WEB ID: 9870217280 | D15: -5 | E15: 1496.23
A16: DEBIT | B16: 2016-11-15 | C16: Amazon Services-Kindl 866-321-8851 WA 11/14 | D16: -8.99 | E16: 1487.24
A17: DEBIT | B17: 2016-11-16 | C17: BYU eCheck 348175935 WEB ID: 9870217280 | D17: -60 | E17: 1421.74
A18: DEBIT | B18: 2016-11-16 | C18: CHANGE POINT LAUNDRY LITHIA SPRING GA 11/15 | D18: -5.5 | E18: 1481.74
A19: DEBIT | B19: 2016-11-21 | C19: LDS CHURCH DONATION 13804165 WEB ID: 2870834341 | D19: -24.39 | E19: 1397.35
A20: DEBIT | B20: 2016-11-22 | C20: WM SUPERC Wal-Mart Sup OREM UT 11/22 | D20: -2.54 | E20: 1346.33
A21: DEBIT | B21: 2016-11-22 | C21: Wal-Mart Super Center OREM UT 11/22 | D21: -30.87 | E21: 1348.87
A22: DEBIT | B22: 2016-11-22 | C22: Amazon Services-Kindl 866-321-8851 WA 11/22 | D22: -8.99 | E22: 1379.74
A23: DEBIT | B23: 2016-11-22 | C23: CAFE RIO PROVO PROVO UT 11/21 | D23: -8.62 | E23: 1388.73
A24: DEBIT | B24: 2016-11-25 | C24: CHANGE POINT LAUNDRY LITHIA SPRING GA 11/22 | D24: -5.5 | E24: 1580.76
A25: CREDIT | B25: 2016-11-25 | C25: BRIGHAM YOUNG UN DIR DEP PPD ID: 1870217280 | D25: 239.93 | E25: 1586.26
A26: DEBIT | B26: 2016-11-28 | C26: VENMO PAYMENT 346609175 WEB ID: 3264681992 | D26: -10 | E26: 1570.76
A27: DEBIT | B27: 2016-11-29 | C27: SMITHS 350 N. FREED PROVO UT 11/29 | D27: -54.81 | E27: 1515.95
A28: DEBIT | B28: 2016-11-30 | C28: LDS CHURCH DONATION 14061715 WEB ID: 2870834341 | D28: -23.99 | E28: 1167.5
A29: DEBIT | B29: 2016-11-30 | C29: P.A.R. Managemen WEB PMTS V7CJG3 WEB ID: 9000334713 | D29: -324.46 | E29: 1191.49

Sheet Report
A1: Financial Report- | E1: 2016-12-08
B19: Categories | C19: Planned | D19: Actual | E19: Difference | G19: Categories | H19: Planned | I19: Actual | J19: Difference
B20: Totals | C20: 300 | D20: 748.4 | E20: -448.4 | G20: Totals | H20: 400 | I20: 383.78 | J20: -16.22
B21: Books | C21: 0 | D21: 0 | E21: 0 | G21: Interest | H21: 0 | I21: 0 | J21: 0
B22: Credit Card | C22: 100 | D22: 0 | E22: 100 | G22: Other | H22: 0 | I22: 0 | J22: 0
B23: Dates | C23: 10 | D23: 0 | E23: 10 | G23: Paycheck | H23: 400 | I23: 383.78 | J23: -16.22
B24: Fast Offerings | C24: 10 | D24: 0 | E24: 10 | G24: Savings | H24: 0 | I24: 0 | J24: 0
B25: Food | C25: 40 | D25: 748.4 | E25: -708.4
B26: Gifts | C26: 0 | D26: 0 | E26: 0
B27: Health/Medical | C27: 5 | D27: 0 | E27: 5
B28: Laundry | C28: 15 | D28: 0 | E28: 15
B29: Misc | C29: 50 | D29: 0 | E29: 50 | G29: Net Gain/Loss | H29: -364.62
B30: Pets | C30: 0 | D30: 0 | E30: 0
B31: Phone | C31: 0 | D31: 0 | E31: 0 | G31: Starting balance: | H31: 10
B32: Rent | C32: 0 | D32: 0 | E32: 0 | G32: Ending Balance: | H32: -354.62
B33: Textbooks | C33: 0 | D33: 0 | E33: 0
B34: Tithing | C34: 40 | D34: 0 | E34: 40
B35: Transportation | C35: 30 | D35: 0 | E35: 30
B36: Travel | C36: 0 | D36: 0 | E36: 0
B37: Tuition | C37: 0 | D37: 0 | E37: 0
B38: Utilities | C38: 0 | D38: 0 | E38: 0
K53: q

Sheet Data from CSV file
A1: Details | B1: Posting Date | C1: Description | D1: Amount | E1: Type | F1: Balance | G1: Check or Slip #
A2: DEBIT | B2: 2016-11-30 | C2: Tithing | D2: -20 | E2: ACH_DEBIT
A3: DEBIT | B3: 2016-11-30 | C3: Rent and Utilities | D3: -320 | E3: ACH_DEBIT
A4: DEBIT | B4: 2016-11-29 | C4: Food | D4: -60 | E4: DEBIT_CARD
A5: DEBIT | B5: 2016-11-28 | C5: Gas | D5: -10 | E5: ACH_DEBIT
A6: DEBIT | B6: 2016-11-25 | C6: Laundry | D6: -5.5 | E6: DEBIT_CARD
A7: CREDIT | B7: 2016-11-25 | C7: Paycheck | D7: 300 | E7: ACH_CREDIT
A8: DEBIT | B8: 2016-11-22 | C8: Medicine | D8: -3 | E8: DEBIT_CARD
A9: DEBIT | B9: 2016-11-22 | C9: Food | D9: -30 | E9: DEBIT_CARD
A10: DEBIT | B10: 2016-11-22 | C10: Books | D10: -9 | E10: DEBIT_CARD
A11: DEBIT | B11: 2016-11-22 | C11: Café Rio | D11: -9 | E11: DEBIT_CARD
A12: DEBIT | B12: 2016-11-21 | C12: Tithing | D12: -30 | E12: ACH_DEBIT
A13: DEBIT | B13: 2016-11-16 | C13: Dance Lessons | D13: -60 | E13: ACH_DEBIT
A14: DEBIT | B14: 2016-11-16 | C14: Laundry | D14: -5.5 | E14: DEBIT_CARD
A15: DEBIT | B15: 2016-11-15 | C15: Books | D15: -9 | E15: DEBIT_CARD
A16: DEBIT | B16: 2016-11-14 | C16: Food | D16: -5 | E16: ACH_DEBIT
A17: CREDIT | B17: 2016-11-10 | C17: Paycheck | D17: 200 | E17: ACH_CREDIT
A18: DEBIT | B18: 2016-11-07 | C18: Credit Card | D18: -100 | E18: ACH_DEBIT
A19: DEBIT | B19: 2016-11-07 | C19: Food | D19: -30 | E19: DEBIT_CARD
A20: DEBIT | B20: 2016-11-07 | C20: Mail Stamps | D20: -10 | E20: DEBIT_CARD
A21: DEBIT | B21: 2016-11-07 | C21: Laundry | D21: -5.5 | E21: DEBIT_CARD
A22: DEBIT | B22: 2016-11-07 | C22: Books | D22: -9 | E22: DEBIT_CARD
A23: DEBIT | B23: 2016-11-02 | C23: Halloween Costume | D23: -8 | E23: DEBIT_CARD
A24: DEBIT | B24: 2016-11-01 | C24: Tithing | D24: -30 | E24: ACH_DEBIT
